fUSD/lending_fUSD_20260506
["ID","MTS","AMOUNT","RATE_DAILY","PERIOD"]
[421719483,1778059832000,-250.0,0.0001661,2]
[421719475,1778059832000,-157.96,0.00016152,2]
[421719486,1778059832000,-160.0,0.00017636,2]
[421719487,1778059832000,-214.60306816,0.00017636,2]
[421719479,1778059832000,-2500.0,0.0001661,2]
[421719497,1778059832000,-818.02353146,0.00019676,2]
[421719491,1778059832000,-457.4,0.0001841,2]
[421719489,1778059832000,-299.99,0.00017768,4]
[421719488,1778059832000,-157.96,0.00017768,2]
[421719495,1778059832000,-157.96,0.00019383,2]
[421719490,1778059832000,-350.0,0.00018,2]
[421719480,1778059832000,-300.0,0.0001661,2]
[421719496,1778059832000,-166.66,0.00019547,2]
[421719492,1778059832000,-307.79330245,0.00018466,2]
[421719493,1778059832000,-150.0,0.00018669,2]
[421719494,1778059832000,-386.9582958,0.0001867,2]
[421719501,1778059832000,-920.0,0.0002,2]
[421719500,1778059832000,-269.0,0.0002,2]
[421719512,1778059832000,-2500.0,0.0002028,2]
[421719507,1778059832000,-500.0,0.0002,2]
[421719498,1778059832000,-493.08830737,0.00019952,2]
[421719477,1778059832000,-193.0,0.0001661,2]
[421719469,1778059832000,-2500.0,0.00015509,2]
[421719473,1778059832000,-300.0,0.00016,2]
[421719511,1778059832000,-5438.41,0.00020246,2]
[421719448,1778059832000,-151.0,0.00015214,2]
[421719450,1778059832000,-151.0,0.00015214,2]
[421719449,1778059832000,-151.0,0.00015214,2]
[421719447,1778059832000,-151.0,0.00015214,2]
[421719451,1778059832000,-151.0,0.00015214,2]
[421719453,1778059832000,-151.0,0.00015214,2]
[421719454,1778059832000,-151.0,0.00015214,2]
[421719452,1778059832000,-151.0,0.00015214,2]
[421719459,1778059832000,-151.0,0.00015214,2]
[421719457,1778059832000,-151.0,0.00015214,2]
[421719456,1778059832000,-151.0,0.00015214,2]
[421719458,1778059832000,-151.0,0.00015214,2]
[421719455,1778059832000,-151.0,0.00015214,2]
[421719462,1778059832000,-151.0,0.00015214,2]
[421719461,1778059832000,-151.0,0.00015214,2]
[421719460,1778059832000,-151.0,0.00015214,2]
[421719464,1778059832000,-151.0,0.00015214,2]
[421719474,1778059832000,-161.28,0.00016007,2]
[421719465,1778059832000,-22350.21898378,0.00015223,2]
[421719463,1778059832000,-151.0,0.00015214,2]
[421719467,1778059832000,-2500.0,0.00015509,2]
[421719466,1778059832000,-250.0,0.0001524,2]
[421719471,1778059832000,-300.0,0.00015509,2]
[421719470,1778059832000,-300.0,0.00015509,2]
[421719472,1778059832000,-300.0,0.00015509,2]
[421719468,1778059832000,-2500.0,0.00015509,2]
[421719478,1778059832000,-4651.04056395,0.0001661,2]
[421719503,1778059832000,-170.0,0.0002,2]
[421719446,1778059832000,-300.0,0.00015157,2]
[421719509,1778059832000,-173.96,0.00020009,2]
[421719539,1778059832000,-269.0,0.00022,2]
[421719541,1778059832000,-189.0,0.00022,2]
[421719547,1778059832000,-169.58505414,0.00022407,2]
[421719545,1778059832000,-500.0,0.00022392,2]
[421719548,1778059832000,-169.58505414,0.00022407,2]
[421719544,1778059832000,-457.4,0.00022353,2]
[421719549,1778059832000,-486.09241015,0.00022451,2]
[421719542,1778059832000,-170.0,0.00022,2]
[421719543,1778059832000,-414.0,0.00022,2]
[421719546,1778059832000,-169.58505415,0.00022407,2]
[421719551,1778059832000,-150.0,0.00022589,2]
[421719561,1778059832000,-237.13,0.00023216,2]
[421719550,1778059832000,-1202.26758985,0.00022451,2]
[421719552,1778059832000,-157.96,0.00022613,2]
[421719553,1778059832000,-1000.0,0.0002294,2]
[421719555,1778059832000,-269.0,0.00023,2]
[421719554,1778059832000,-1688.36,0.00022998,2]
[421719556,1778059832000,-920.0,0.00023,2]
[421719559,1778059832000,-414.0,0.00023,2]
[421719560,1778059832000,-159.52,0.00023216,2]
[421719558,1778059832000,-170.0,0.00023,2]
[421719557,1778059832000,-189.0,0.00023,2]
[421719563,1778059832000,-835.20417041,0.00023488,2]
[421719564,1778059832000,-1688.36,0.00023546,2]
[421719565,1778059832000,-160.16,0.00023716,2]
[421719562,1778059832000,-170.71,0.00023259,2]
[421719508,1778059832000,-500.0,0.0002,2]
[421719540,1778059832000,-920.0,0.00022,2]
[421719538,1778059832000,-1000.0,0.00021918,5]
[421719566,1778059832000,-269.0,0.00024,2]
[421719534,1778059832000,-166.66,0.00021605,2]
[421719532,1778059832000,-352.39,0.00021273,2]
[421719502,1778059832000,-189.0,0.0002,2]
[421719506,1778059832000,-500.0,0.0002,2]
[421719504,1778059832000,-414.0,0.0002,2]
[421719510,1778059832000,-3261.56,0.00020107,2]
[421719513,1778059832000,-166.66,0.0002037,2]
[421719524,1778059832000,-920.0,0.00021,2]
[421719514,1778059832000,-457.4,0.00020381,2]
[421719523,1778059832000,-269.0,0.00021,2]
[421719516,1778059832000,-150.0,0.00020536,2]
[421719522,1778059832000,-157.96,0.00020998,2]
[421719520,1778059832000,-817.98944572,0.00020793,2]
[421719521,1778059832000,-200.0,0.00020962,2]
[421719518,1778059832000,-500.0,0.00020723,2]
[421719505,1778059832000,-500.0,0.0002,2]
[421719517,1778059832000,-170.71,0.00020675,2]
[421719515,1778059832000,-211.56,0.00020408,2]
[421719533,1778059832000,-728.28,0.00021273,2]
[421719537,1778059832000,-5000.0,0.00021918,2]
[421719536,1778059832000,-1688.36,0.00021903,2]
[421719526,1778059832000,-170.0,0.00021,2]
[421719535,1778059832000,-307.79330245,0.00021818,2]
[421719529,1778059832000,-166.66,0.00021193,2]
[421719519,1778059832000,-166.66,0.00020782,2]
[421719527,1778059832000,-414.0,0.00021,2]
[421719525,1778059832000,-189.0,0.00021,2]
[421719531,1778059832000,-337.96,0.00021273,2]
[421719528,1778059832000,-1182.42,0.00021151,2]
[421719530,1778059832000,-2532.48,0.00021273,2]
[421719603,1778059833000,-411.22043059,0.00026768,2]
[421719598,1778059833000,-457.4,0.00026296,2]
[421719589,1778059833000,-2532.48,0.00025786,2]
[421719597,1778059833000,-250.0,0.00026221,2]
[421719599,1778059833000,-501.30095539,0.000263,2]
[421719600,1778059833000,-286.66,0.00026388,2]
[421719601,1778059833000,-171.99,0.00026484,7]
[421719602,1778059833000,-286.66,0.00026676,7]
[421719604,1778059833000,-162.091134,0.00026849,14]
[421719594,1778059833000,-286.66,0.00025811,7]
[421719608,1778059833000,-501.0,0.00027137,2]
[421719611,1778059833000,-189.335256,0.00027302,14]
[421719607,1778059833000,-286.66,0.00026964,30]
[421719606,1778059833000,-299.102956,0.00026849,14]
[421719610,1778059833000,-286.66,0.00027253,2]
[421719609,1778059833000,-11301.3308978,0.00027176,2]
[421719618,1778059833000,-286.66,0.00027541,7]
[421719616,1778059833000,-14539.93,0.00027397,10]
[421719615,1778059833000,-17447.91,0.00027397,10]
[421719614,1778059833000,-20937.49,0.00027397,10]
[421719613,1778059833000,-214.60306816,0.00027397,10]
[421719592,1778059833000,-728.28,0.00025786,2]
[421719612,1778059833000,-1500.0,0.00027397,2]
[421719605,1778059833000,-291.171657,0.00026849,14]
[421719591,1778059833000,-352.39,0.00025786,2]
[421719577,1778059833000,-160.45,0.00024658,2]
[421719590,1778059833000,-337.96,0.00025786,2]
[421719617,1778059833000,-12116.6,0.00027397,10]
[421719571,1778059833000,-161.28,0.00024011,2]
[421719573,1778059833000,-19864.41,0.00024174,2]
[421719574,1778059833000,-157.96,0.00024229,2]
[421719572,1778059833000,-1688.36,0.00024094,2]
[421719570,1778059833000,-414.0,0.00024,2]
[421719567,1778059833000,-920.0,0.00024,2]
[421719569,1778059833000,-170.0,0.00024,2]
[421719568,1778059833000,-189.0,0.00024,2]
[421719576,1778059833000,-1000.0,0.00024658,2]
[421719575,1778059833000,-457.4,0.00024324,2]
[421719579,1778059833000,-279.0,0.00025,2]
[421719582,1778059833000,-172.0,0.00025,2]
[421719581,1778059833000,-189.0,0.00025,2]
[421719578,1778059833000,-171.99,0.00024658,2]
[421719583,1778059833000,-414.0,0.00025,2]
[421719584,1778059833000,-11301.33089782,0.00025586,2]
[421719586,1778059833000,-52346.5134,0.00025686,2]
[421719595,1778059833000,-157.96,0.00025844,2]
[421719585,1778059833000,-150.0,0.00025673,2]
[421719596,1778059833000,-286.66,0.00026099,30]
[421719587,1778059833000,-458.5593,0.00025686,2]
[421719593,1778059833000,-19864.41,0.00025786,2]
[421719588,1778059833000,-500.0,0.00025777,2]
[421719619,1778059833000,-500.0,0.000278,7]
[421719580,1778059833000,-930.0,0.00025,2]
[421719620,1778059833000,-286.66,0.0002783,30]
[421719648,1778059833000,-286.66,0.00028983,2]
[421719655,1778059833000,-501.0,0.00029695,4]
[421719653,1778059833000,-286.66,0.0002956,30]
[421719657,1778059833000,-293.0,0.0003,5]
[421719656,1778059833000,-286.66,0.00029848,2]
[421719658,1778059833000,-286.74,0.00030136,7]
[421719652,1778059833000,-150.0,0.00029534,2]
[421719651,1778059833000,-200.0,0.00029375,2]
[421719654,1778059833000,-500.0,0.00029641,2]
[421719670,1778059833000,-168.92,0.00031005,2]
[421719672,1778059833000,-170.71,0.00031012,120]
[421719649,1778059833000,-152.89,0.00029232,30]
[421719660,1778059833000,-160.45,0.00030137,2]
[421719671,1778059833000,-150.0,0.00031011,2]
[421719663,1778059833000,-184.97,0.00030411,120]
[421719664,1778059833000,-501.0,0.00030548,5]
[421719659,1778059833000,-172.02,0.00030136,2]
[421719661,1778059833000,-457.4,0.00030239,2]
[421719668,1778059833000,-168.92,0.00031003,2]
[421719667,1778059833000,-168.92,0.00031003,2]
[421719665,1778059833000,-183.024081,0.00030877,14]
[421719669,1778059833000,-168.94,0.00031005,2]
[421719666,1778059833000,-168.92,0.00031001,2]
[421719622,1778059833000,-151.0,0.00027856,7]
[421719662,1778059833000,-11301.3308978,0.00030357,2]
[421719650,1778059833000,-286.66,0.00029271,7]
[421719673,1778059833000,-4839.0,0.000311,5]
[421719646,1778059833000,-501.0,0.00028842,3]
[421719624,1778059833000,-1080.51808304,0.00027859,5]
[421719623,1778059833000,-500.0,0.00027859,2]
[421719621,1778059833000,-198.64,0.00027849,2]
[421719631,1778059833000,-1144.15120168,0.00027859,5]
[421719632,1778059833000,-1113.09026149,0.00027859,5]
[421719625,1778059833000,-1127.8432694,0.00027859,5]
[421719628,1778059833000,-1052.39520977,0.00027859,5]
[421719647,1778059833000,-152.88,0.00028954,7]
[421719629,1778059833000,-1114.93081714,0.00027859,5]
[421719626,1778059833000,-1086.01038878,0.00027859,5]
[421719627,1778059833000,-1000.27830933,0.00027859,5]
[421719634,1778059833000,-1957.03265659,0.00027859,5]
[421719630,1778059833000,-1140.0388782,0.00027859,5]
[421719635,1778059833000,-501.0,0.0002799,2]
[421719637,1778059833000,-286.66,0.00028118,2]
[421719636,1778059833000,-253.96,0.00028,2]
[421719639,1778059833000,-130.43824633,0.00028267,2]
[421719642,1778059833000,-286.66,0.00028406,7]
[421719641,1778059833000,-171.99,0.0002831,30]
[421719638,1778059833000,-326.96175367,0.00028267,2]
[421719640,1778059833000,-581.0,0.00028301,2]
[421719644,1778059833000,-286.66,0.00028695,30]
[421719643,1778059833000,-152.88,0.00028676,2]
[421719633,1778059833000,-1022.54525261,0.00027859,5]
[421719645,1778059833000,-11301.3308978,0.00028767,2]
[421719705,1778059834000,-269.0,0.0003223,30]
[421719700,1778059834000,-215.47360396,0.00032,120]
[421719707,1778059834000,-189.0,0.00032231,30]
[421719699,1778059834000,-1028.29032096,0.00032,120]
[421719703,1778059834000,-457.4,0.0003221,5]
[421719702,1778059834000,-3236.31305,0.00032,120]
[421719708,1778059834000,-153.0,0.00032231,30]
[421719698,1778059834000,-384.14219294,0.00032,120]
[421719706,1778059834000,-920.0,0.0003223,30]
[421719711,1778059834000,-501.0,0.00032253,7]
[421719722,1778059834000,-200.0,0.00032503,60]
[421719716,1778059834000,-200.0,0.00032503,60]
[421719714,1778059834000,-53778.7766,0.00032493,2]
[421719715,1778059834000,-200.0,0.00032503,60]
[421719723,1778059834000,-200.0,0.00032503,60]
[421719712,1778059834000,-500.0,0.00032473,5]
[421719717,1778059834000,-200.0,0.00032503,60]
[421719721,1778059834000,-200.0,0.00032503,60]
[421719720,1778059834000,-200.0,0.00032503,60]
[421719718,1778059834000,-200.0,0.00032503,60]
[421719719,1778059834000,-200.0,0.00032503,60]
[421719701,1778059834000,-3632.83814094,0.00032,120]
[421719713,1778059834000,-500.0,0.00032473,5]
[421719709,1778059834000,-170.0,0.00032231,30]
[421719688,1778059834000,-501.0,0.000314,6]
[421719704,1778059834000,-159.0,0.0003223,30]
[421719724,1778059834000,-200.0,0.00032503,60]
[421719683,1778059834000,-153.0,0.00031231,30]
[421719674,1778059834000,-500.0,0.00031188,120]
[421719675,1778059834000,-500.0,0.00031188,2]
[421719680,1778059834000,-269.0,0.0003123,30]
[421719676,1778059834000,-500.0,0.00031188,120]
[421719678,1778059834000,-154.0,0.0003123,30]
[421719677,1778059834000,-500.0,0.00031188,7]
[421719682,1778059834000,-189.0,0.00031231,30]
[421719679,1778059834000,-159.0,0.0003123,30]
[421719681,1778059834000,-920.0,0.0003123,30]
[421719710,1778059834000,-414.0,0.00032231,30]
[421719684,1778059834000,-170.0,0.00031231,30]
[421719687,1778059834000,-213.65,0.00031314,14]
[421719685,1778059834000,-154.36955594,0.00031231,30]
[421719696,1778059834000,-513.37761461,0.00032,120]
[421719695,1778059834000,-11301.3308978,0.00031948,2]
[421719697,1778059834000,-176.59474567,0.00032,120]
[421719689,1778059834000,-200.0,0.00031455,2]
[421719692,1778059834000,-1187.095379,0.000318,2]
[421719694,1778059834000,-500.0,0.00031811,2]
[421719690,1778059834000,-1000.0,0.000315,7]
[421719693,1778059834000,-1187.095379,0.000318,2]
[421719691,1778059834000,-1187.09537902,0.000318,2]
[421719686,1778059834000,-414.0,0.00031231,30]
[421719734,1778059834000,-200.0,0.00032503,60]
[421719731,1778059834000,-200.0,0.00032503,60]
[421719725,1778059834000,-200.0,0.00032503,60]
[421719758,1778059834000,-572.0,0.00032603,2]
[421719754,1778059834000,-150.0,0.00032603,2]
[421719755,1778059834000,-572.0,0.00032603,2]
[421719756,1778059834000,-150.0,0.00032603,2]
[421719761,1778059834000,-572.0,0.00032603,2]
[421719771,1778059834000,-224.78889223,0.00032603,2]
[421719762,1778059834000,-500.0,0.00032603,2]
[421719760,1778059834000,-200.0,0.00032603,2]
[421719764,1778059834000,-150.0,0.00032603,2]
[421719763,1778059834000,-150.0,0.00032603,2]
[421719765,1778059834000,-572.0,0.00032603,2]
[421719770,1778059834000,-150.0,0.00032603,2]
[421719766,1778059834000,-500.0,0.00032603,2]
[421719769,1778059834000,-572.0,0.00032603,2]
[421719768,1778059834000,-152.27713592,0.00032603,2]
[421719735,1778059834000,-200.0,0.00032503,60]
[421719773,1778059834000,-572.0,0.00032603,2]
[421719772,1778059834000,-150.0,0.00032603,2]
[421719774,1778059834000,-150.0,0.00032603,2]
[421719775,1778059834000,-572.0,0.00032603,2]
[421719776,1778059834000,-150.0,0.00032603,2]
[421719777,1778059834000,-258.68040701,0.00032603,2]
[421719778,1778059834000,-287.06431718,0.00032603,2]
[421719757,1778059834000,-500.0,0.00032603,2]
[421719752,1778059834000,-572.0,0.00032603,2]
[421719767,1778059834000,-150.0,0.00032603,2]
[421719751,1778059834000,-572.0,0.00032603,2]
[421719753,1778059834000,-572.0,0.00032603,2]
[421719733,1778059834000,-200.0,0.00032503,60]
[421719736,1778059834000,-200.0,0.00032503,60]
[421719730,1778059834000,-200.0,0.00032503,60]
[421719732,1778059834000,-200.0,0.00032503,60]
[421719729,1778059834000,-200.0,0.00032503,60]
[421719726,1778059834000,-200.0,0.00032503,60]
[421719727,1778059834000,-200.0,0.00032503,60]
[421719740,1778059834000,-200.0,0.00032503,60]
[421719739,1778059834000,-200.0,0.00032503,60]
[421719737,1778059834000,-200.0,0.00032503,60]
[421719728,1778059834000,-200.0,0.00032503,60]
[421719742,1778059834000,-150.0,0.00032562,2]
[421719750,1778059834000,-150.0,0.00032603,2]
[421719741,1778059834000,-305.665592,0.00032503,60]
[421719748,1778059834000,-209.8895384,0.00032603,2]
[421719749,1778059834000,-572.0,0.00032603,2]
[421719747,1778059834000,-572.0,0.00032603,2]
[421719759,1778059834000,-150.0,0.00032603,2]
[421719745,1778059834000,-150.0,0.00032603,2]
[421719746,1778059834000,-188.54851579,0.00032603,2]
[421719744,1778059834000,-155.0,0.00032602,2]
[421719743,1778059834000,-150.0,0.00032573,5]
[421719738,1778059834000,-200.0,0.00032503,60]
[421719810,1778059838000,-152.88,0.00029093,2]
[421719812,1778059838000,-152.88,0.00029232,30]
[421719802,1778059838000,-500.0,0.00024173,2]
[421719811,1778059838000,-152.88,0.00029163,7]
[421719804,1778059838000,-158.76,0.00025114,7]
[421719803,1778059838000,-158.76,0.00024658,2]
[421719813,1778059838000,-500.0,0.00032603,2]
[421719807,1778059838000,-152.88,0.00028815,30]
[421719806,1778059838000,-152.88,0.00028745,7]
[421719805,1778059838000,-214.60306816,0.000282,10]
[421719808,1778059838000,-152.88,0.00028884,2]
[421719817,1778059838000,-150.0,0.00032603,2]
[421719816,1778059838000,-500.0,0.00032603,2]
[421719801,1778059838000,-500.0,0.00024173,2]
[421719809,1778059838000,-152.88,0.00029024,30]
[421719796,1778059838000,-500.0,0.00024173,2]
[421719783,1778059838000,-500.0,0.00024173,2]
[421719794,1778059838000,-500.0,0.00024173,2]
[421719782,1778059838000,-200.0,0.00020509,2]
[421719826,1778059838000,-500.0,0.00032603,2]
[421719785,1778059838000,-500.0,0.00024173,2]
[421719784,1778059838000,-500.0,0.00024173,2]
[421719786,1778059838000,-500.0,0.00024173,2]
[421719799,1778059838000,-500.0,0.00024173,2]
[421719800,1778059838000,-500.0,0.00024173,2]
[421719789,1778059838000,-500.0,0.00024173,2]
[421719788,1778059838000,-500.0,0.00024173,2]
[421719793,1778059838000,-500.0,0.00024173,2]
[421719797,1778059838000,-500.0,0.00024173,2]
[421719791,1778059838000,-415.78281335,0.00024173,2]
[421719798,1778059838000,-500.0,0.00024173,2]
[421719795,1778059838000,-500.0,0.00024173,2]
[421719792,1778059838000,-500.0,0.00024173,2]
[421719790,1778059838000,-500.0,0.00024173,2]
[421719815,1778059838000,-150.0,0.00032603,2]
[421719787,1778059838000,-500.0,0.00024173,2]
[421719814,1778059838000,-500.0,0.00032603,2]
[421719840,1778059838000,-500.0,0.00032603,2]
[421719847,1778059838000,-500.0,0.00032603,2]
[421719848,1778059838000,-500.0,0.00032603,2]
[421719858,1778059838000,-213.26168434,0.00032603,2]
[421719860,1778059838000,-167.26763731,0.00032603,2]
[421719861,1778059838000,-255.73236269,0.00032603,2]
[421719863,1778059838000,-500.0,0.00032603,2]
[421719862,1778059838000,-500.0,0.00032603,2]
[421719851,1778059838000,-500.0,0.00032603,2]
[421719849,1778059838000,-423.0,0.00032603,2]
[421719853,1778059838000,-500.0,0.00032603,2]
[421719855,1778059838000,-286.73831566,0.00032603,2]
[421719864,1778059838000,-150.0,0.00032603,2]
[421719866,1778059838000,-135.77395225,0.00032603,2]
[421719825,1778059838000,-500.0,0.00032603,2]
[421719843,1778059838000,-423.0,0.00032603,2]
[421719838,1778059838000,-423.0,0.00032603,2]
[421719865,1778059838000,-423.0,0.00032603,2]
[421719842,1778059838000,-517.59719864,0.00032603,2]
[421719820,1778059838000,-150.0,0.00032603,2]
[421719846,1778059838000,-423.0,0.00032603,2]
[421719819,1778059838000,-500.0,0.00032603,2]
[421719822,1778059838000,-500.0,0.00032603,2]
[421719818,1778059838000,-500.0,0.00032603,2]
[421719823,1778059838000,-214.5479058,0.00032603,2]
[421719824,1778059838000,-500.0,0.00032603,2]
[421719821,1778059838000,-500.0,0.00032603,2]
[421719829,1778059838000,-500.0,0.00032603,2]
[421719831,1778059838000,-500.0,0.00032603,2]
[421719833,1778059838000,-500.0,0.00032603,2]
[421719828,1778059838000,-500.0,0.00032603,2]
[421719835,1778059838000,-500.0,0.00032603,2]
[421719845,1778059838000,-500.0,0.00032603,2]
[421719844,1778059838000,-500.0,0.00032603,2]
[421719827,1778059838000,-396.81959912,0.00032603,2]
[421719878,1778059840000,-158.76,0.00025571,30]
[421719880,1778059840000,-33.13338049,0.00026484,7]
[421719882,1778059840000,-1458.69864096,0.00027759,2]
[421719881,1778059840000,-125.62661951,0.00026484,7]
[421719883,1778059840000,-1637.62492886,0.00032593,10]
[421719879,1778059840000,-158.76,0.00026027,2]
[421719906,1778059843000,-423.0,0.00032603,2]
[421719916,1778059843000,-423.0,0.00032603,2]
[421719919,1778059843000,-423.0,0.00032603,2]
[421719917,1778059843000,-423.0,0.00032603,2]
[421719915,1778059843000,-234.2455945,0.00032603,2]
[421719912,1778059843000,-150.0,0.00032603,2]
[421719911,1778059843000,-521.83722125,0.00032603,2]
[421719913,1778059843000,-150.0,0.00032603,2]
[421719914,1778059843000,-150.0,0.00032603,2]
[421719910,1778059843000,-500.0,0.00032603,2]
[421719909,1778059843000,-423.0,0.00032603,2]
[421719908,1778059843000,-500.0,0.00032603,2]
[421719896,1778059843000,-8459.54507114,0.00032593,10]
[421719903,1778059843000,-423.0,0.00032603,2]
[421719905,1778059843000,-500.0,0.00032603,2]
[421719902,1778059843000,-166.38904159,0.00032603,2]
[421719904,1778059843000,-423.0,0.00032603,2]
[421719901,1778059843000,-251.17490165,0.00032603,2]
[421719900,1778059843000,-500.0,0.00032603,2]
[421719899,1778059843000,-423.0,0.00032603,2]
[421719897,1778059843000,-364.22604775,0.00032603,2]
[421719898,1778059843000,-150.0,0.00032603,2]
[421719895,1778059843000,-1447.47185528,0.00027397,2]
[421719894,1778059843000,-52.52814472,0.00027397,2]
[421719920,1778059843000,-423.0,0.00032603,2]
[421719907,1778059843000,-423.0,0.00032603,2]
[421719923,1778059843000,-423.0,0.00032603,2]
[421719918,1778059843000,-423.0,0.00032603,2]
[421719922,1778059843000,-423.0,0.00032603,2]
[421719924,1778059843000,-423.0,0.00032603,2]
[421719947,1778059843000,-537.0,0.00032603,2]
[421719948,1778059843000,-500.0,0.00032603,2]
[421719949,1778059843000,-537.0,0.00032603,2]
[421719950,1778059843000,-500.0,0.00032603,2]
[421719946,1778059843000,-500.0,0.00032603,2]
[421719941,1778059843000,-537.0,0.00032603,2]
[421719942,1778059843000,-537.0,0.00032603,2]
[421719943,1778059843000,-500.0,0.00032603,2]
[421719938,1778059843000,-500.0,0.00032603,2]
[421719937,1778059843000,-537.0,0.00032603,2]
[421719939,1778059843000,-537.0,0.00032603,2]
[421719940,1778059843000,-500.0,0.00032603,2]
[421719944,1778059843000,-537.0,0.00032603,2]
[421719945,1778059843000,-500.0,0.00032603,2]
[421719936,1778059843000,-537.0,0.00032603,2]
[421719935,1778059843000,-537.0,0.00032603,2]
[421719921,1778059843000,-423.0,0.00032603,2]
[421719927,1778059843000,-446.25809725,0.00032603,2]
[421719928,1778059843000,-150.0,0.00032603,2]
[421719929,1778059843000,-537.0,0.00032603,2]
[421719925,1778059843000,-423.0,0.00032603,2]
[421719933,1778059843000,-537.0,0.00032603,2]
[421719932,1778059843000,-537.0,0.00032603,2]
[421719931,1778059843000,-537.0,0.00032603,2]
[421719926,1778059843000,-423.0,0.00032603,2]
[421719934,1778059843000,-537.0,0.00032603,2]
[421719930,1778059843000,-537.0,0.00032603,2]
[421719979,1778059844000,-500.0,0.00032603,2]
[421719974,1778059844000,-500.0,0.00032603,2]
[421719978,1778059844000,-250.0,0.00032603,2]
[421719977,1778059844000,-500.0,0.00032603,2]
[421719981,1778059844000,-150.0,0.00032603,2]
[421719983,1778059844000,-500.0,0.00032603,2]
[421719982,1778059844000,-500.0,0.00032603,2]
[421719984,1778059844000,-500.0,0.00032603,2]
[421719987,1778059844000,-500.0,0.00032877,2]
[421719985,1778059844000,-500.0,0.00032603,2]
[421719996,1778059844000,-500.0,0.00032877,2]
[421719988,1778059844000,-500.0,0.00032877,2]
[421719990,1778059844000,-500.0,0.00032877,2]
[421719991,1778059844000,-500.0,0.00032877,2]
[421719989,1778059844000,-500.0,0.00032877,2]
[421719993,1778059844000,-500.0,0.00032877,2]
[421719992,1778059844000,-500.0,0.00032877,2]
[421719995,1778059844000,-500.0,0.00032877,2]
[421719998,1778059844000,-255.18969162,0.00032877,2]
[421719975,1778059844000,-500.0,0.00032603,2]
[421719986,1778059844000,-334.7323388,0.00032603,2]
[421719976,1778059844000,-500.0,0.00032603,2]
[421719958,1778059844000,-500.0,0.00032603,2]
[421719973,1778059844000,-500.0,0.00032603,2]
[421719997,1778059844000,-500.0,0.00032877,2]
[421719951,1778059844000,-537.0,0.00032603,2]
[421719952,1778059844000,-500.0,0.00032603,2]
[421719954,1778059844000,-500.0,0.00032603,2]
[421719953,1778059844000,-500.0,0.00032603,2]
[421719955,1778059844000,-537.0,0.00032603,2]
[421719961,1778059844000,-537.0,0.00032603,2]
[421719962,1778059844000,-537.0,0.00032603,2]
[421719959,1778059844000,-500.0,0.00032603,2]
[421719957,1778059844000,-500.0,0.00032603,2]
[421719963,1778059844000,-537.0,0.00032603,2]
[421719964,1778059844000,-537.0,0.00032603,2]
[421719960,1778059844000,-326.77120536,0.00032603,2]
[421719970,1778059844000,-500.0,0.00032603,2]